Cogmind - Beta 13 @@@ ROGUE MODE // 2024.05.08 @ 22:21:45 Player: luckinvolved Result: Destroyed by as-37289 with Assembled Heavy Rifle Performance ------------- Evolutions (0) 0 Regions Visited (4) 800 Robots Destroyed (11) 55 Value Destroyed (264) 264 Prototype IDs (4) 80 Alien Tech Used (0) 0 Bonus (300) 300 TOTAL SCORE: 1499 Bonus ------- Aligned with FarCom 300 Cogmind --------- Core Integrity 0/250 Matter 252/300 Energy 250/250 System Corruption 0% Temperature Cool (0) Movement Treading (320) Ox2 Location -9/Mines Parts ------- > --- POWER (1) -------- Ion Engine > --- PROPULSION (2) --- Light Treads Wheel > --- UTILITY (2) ------ High-capacity Storage Unit Improved Targeting Computer > --- WEAPON (2) ------- Assault Rifle Longsword +1 > --- INVENTORY (20) --- Ion Engine Light Treads Light Treads Improved Heat Sink Improved Heat Sink Structural Scanner Seismic Detector Improved Targeting Computer Improved Medium Laser Improved Medium Laser AWS/Thermal Firepult Mining Laser Peak State ------------ > --- POWER ------------ Ion Engine > --- PROPULSION ------- Light Treads Light Treads > --- UTILITY ---------- High-capacity Storage Unit Improved Targeting Computer > --- WEAPON ----------- Firepult > --- INVENTORY -------- Ion Engine Ion Engine Light Treads Light Treads Wheel Improved Heat Sink Improved Heat Sink Structural Scanner Seismic Detector Improved Targeting Computer Improved Medium Laser Improved Medium Laser AWS/Thermal Assault Rifle Assault Rifle Mining Laser Longsword +1 [Rating: 30] Favorites ----------- Power Ion Engine Engine Ion Engine Propulsion Light Treads Treads Light Treads Wheel Wheel Utility High-capacity Storage Unit Storage High-capacity Storage Unit Processor Improved Targeting Computer Weapon Assault Rifle Energy Gun AWS/Thermal Energy Cannon Firepult Ballistic Gun Assault Rifle Slashing Weapon Longsword +1 Build | -11 -10 -10 -10 -9 ------- Run | Yrd Mat Min Exi Min Slots Evolved . | . . . . . Power . | . . . . . Propulsion . | . . . . . Utility . | . . . . . Weapon . | . . . . . Parts Attached 28 | 6 9 . 5 8 Power 3 | 1 1 . . 1 Engine 3 | 1 1 . . 1 Core . | . . . . . Reactor . | . . . . . Propulsion 8 | 2 4 . . 2 Treads 6 | 2 3 . . 1 Leg . | . . . . . Wheel 2 | . 1 . . 1 Hover . | . . . . . Flight . | . . . . . Utility 3 | 1 2 . . . Device . | . . . . . Storage 2 | 1 1 . . . Processor 1 | . 1 . . . Hackware . | . . . . . Protection . | . . . . . Artifact . | . . . . . Weapon 14 | 2 2 . 5 5 Energy Gun 1 | . . . 1 . Energy Cannon 2 | . . . 1 1 Ballistic Gun 9 | 2 2 . 2 3 Ballistic Cannon . | . . . . . Launcher . | . . . . . Special Weapon . | . . . . . Impact Weapon . | . . . . . Slashing Weapon 2 | . . . 1 1 Piercing Weapon . | . . . . . Special Melee Weapon . | . . . . . Unidentified Prototypes 4 | . 1 . 3 . Parts Lost 5 | . 1 . . 4 Power 1 | . . . . 1 Propulsion 1 | . . . . 1 Utility . | . . . . . Weapon 3 | . 1 . . 2 Highest Loss Streak 4 | . 1 . . 4 To Critical Strikes . | . . . . . Average Slot Usage (%) 92 | . 88 100 98 93 Engine 13 | . 13 14 14 12 Treads 23 | . 22 28 28 18 Wheel 3 | . 4 . . 6 Storage 14 | . 14 14 14 14 Processor 8 | . 4 14 14 14 Ballistic Gun 26 | . 27 28 26 19 Naked Turns . | . . . . . Heaviest Build 50 | 12 49 49 49 50 Greatest Support 40 | 40 40 40 40 40 Greatest Overweight (x) 4 | . 4 1 1 4 Average Overweight (x) 1 | . 1 1 1 2 Largest Inventory Capacity 20 | 8 20 20 20 20 Average Capacity 18 | 7 17 20 20 20 Most Carried 20 | 4 20 20 20 20 Average Carried 13 | 2 10 20 19 17 Final Capacity 20 | 8 20 20 20 20 Final Carried 20 | 4 20 20 20 15 Class Distribution -------------------- 100% | Mutant Dominant Class ---------------- Mutant | -10/Materials Mutant | -10/Mines Mutant | -10/Exiles Mutant | -9/Mines Resources | -11 -10 -10 -10 -9 ----------- Run | Yrd Mat Min Exi Min Matter Collected 689 | 258 278 . . 153 Remotely . | . . . . . Salvage Created 529 | . 336 . . 193 Parts 25 | . 23 . . 2 Haulers Intercepted 2 | . 2 . . . Recyclers Shooed 3 | . 3 . . . Parts Field Recycled . | . . . . . Retrieved Matter . | . . . . . Parts Self-Destructed . | . . . . . Prevented . | . . . . . Kills | -11 -10 -10 -10 -9 ------- Run | Yrd Mat Min Exi Min Combat Hostiles Destroyed 18 | . 8 . . 10 Melee 2 | . . . . 2 Guns 12 | . 8 . . 4 AOE 4 | . . . . 4 Classes Destroyed 4 | . 3 . . 1 Hauler 2 | . 2 . . . Swarmer 3 | . 3 . . . Grunt 6 | . 5 . . 1 Assembled 9 | . . . . 9 Best Kill Streak 5 | . 3 . . 5 Combat Bots Only 5 | . 3 . . 5 Max Kills in Single Turn 4 | . 2 . . 4 Gunslinging 1 | . 1 . . . Exploded 4 | . . . . 4 Melee 1 | . . . . 1 Uniques/NPCs Destroyed . | . . . . . Combat | -11 -10 -10 -10 -9 -------- Run | Yrd Mat Min Exi Min Hostile Shots Fired 88 | . 28 . . 60 Missed 29 | . 9 . . 20 Damage Taken 968 | . 202 . . 766 Core 253 | . 54 . . 199 Absorbed by Shields . | . . . . . Core Remaining (%) 100 | 100 . . . . Volleys Fired 50 | . 31 . . 19 Largest 2 | . 2 . . 2 Hottest 250 | . 40 . . 250 Shots Fired 90 | . 62 . . 28 Gun 89 | . 62 . . 27 Cannon 1 | . . . . 1 Launcher . | . . . . . Special . | . . . . . Kinetic 89 | . 62 . . 27 Thermal 1 | . . . . 1 Explosive . | . . . . . Electromagnetic . | . . . . . Robot Hit Streak 8 | . 7 . . 8 Robot Miss Streak 4 | . 4 . . 3 Penetration Max . | . . . . . Secondary Targets 2 | . 1 . . 1 Max Gunslinging Chain 1 | . 1 . . 1 Shots Hit Robots 60 | . 39 . . 21 Core Hits 36 | . 17 . . 19 Critical Kills . | . . . . . Critical Parts Destroyed . | . . . . . Critical Strikes . | . . . . . Melee Attacks 3 | . . . . 3 Impact . | . . . . . Slashing 3 | . . . . 3 Piercing . | . . . . . Sneak Attacks . | . . . . . Combat Hostiles . | . . . . . Follow-up Attacks . | . . . . . Damage Inflicted 1075 | . 500 . . 575 Guns 714 | . 500 . . 214 Cannons 28 | . . . . 28 Explosions 155 | . . . . 155 Melee 178 | . . . . 178 Ramming . | . . . . . Kinetic 714 | . 500 . . 214 Thermal 183 | . . . . 183 Explosive . | . . . . . Electromagnetic . | . . . . . Impact . | . . . . . Slashing 178 | . . . . 178 Piercing . | . . . . . Highest Corruption . | . . . . . Average Corruption . | . . . . . Corruption Purged . | . . . . . Corruption Blocked . | . . . . . Overload Shots . | . . . . . Overflow Damage 31 | . . . . 31 Projectiles . | . . . . . Explosions 7 | . . . . 7 Melee 24 | . . . . 24 Knockbacks . | . . . . . Impact . | . . . . . Kinetic . | . . . . . Secondary . | . . . . . Self-Inflicted Damage 56 | . . . . 56 Shots 4 | . . . . 4 Rammed . | . . . . . Targets Rammed . | . . . . . Kicked . | . . . . . Crushed . | . . . . . Highest Temperature 290 | . 2 . . 290 Average Temperature 124 | . 2 . . 128 Received Heat Transfer 173 | . 99 . . 74 Siege Activations . | . . . . . Robots Corrupted . | . . . . . Combat Hostiles . | . . . . . Parts Fried . | . . . . . Impact Corruptions . | . . . . . Robots Melted . | . . . . . Combat Hostiles . | . . . . . Parts Melted . | . . . . . Heat Transferred 960 | . . . . 960 Parts Sabotaged . | . . . . . Parts Stolen . | . . . . . Parts Stripped . | . . . . . Power Chain Reactions . | . . . . . Alert | -11 -10 -10 -10 -9 ------- Run | Yrd Mat Min Exi Min Peak Influence 167 | . 167 17 . 39 Initial 17 | . . 17 . . Average 40 | . 51 17 . 19 Maximum Alert Level . | . . . . . Low Security (%) 100 | 100 100 100 . 100 Level 1 . | . . . . . Level 2 . | . . . . . Level 3 . | . . . . . Level 4 . | . . . . . Level 5 . | . . . . . High Security . | . . . . . Max Security . | . . . . . Squads Dispatched 3 | . 3 . . . Investigation 1 | . 1 . . . Extermination . | . . . . . Reinforcement 2 | . 2 . . . Assault . | . . . . . Garrison . | . . . . . Intercept . | . . . . . Searches Triggered . | . . . . . Construction Impeded . | . . . . . Haulers Reinforced . | . . . . . Active Scanning Responses . | . . . . . Cargo Convoy Interrupts . | . . . . . Stealth | -11 -10 -10 -10 -9 --------- Run | Yrd Mat Min Exi Min Distress Signals 1 | . 1 . . . Communications Jammed . | . . . . . Distress Signals . | . . . . . Times Spotted 32 | . 16 . . 16 Peak Tracking Total 5 | . 3 . . 5 Tactical Retreats 7 | . 7 . . . Traps | -11 -10 -10 -10 -9 ------- Run | Yrd Mat Min Exi Min Traps Triggered 2 | . 2 . . . Indirectly . | . . . . . Trap Hack Attempts . | . . . . . Triggered . | . . . . . Disarmed . | . . . . . Reprogrammed . | . . . . . Reused . | . . . . . Traps Extracted . | . . . . . Installed . | . . . . . Triggered . | . . . . . Machines | -11 -10 -10 -10 -9 ---------- Run | Yrd Mat Min Exi Min Machines Disabled . | . . . . . Max in Single Turn . | . . . . . Machines Repaired . | . . . . . Machines Dismantled . | . . . . . Machines Sabotaged . | . . . . . Overloaded Fab Kills . | . . . . . Hacking | -11 -10 -10 -10 -9 --------- Run | Yrd Mat Min Exi Min Machines Accessed 3 | . 3 . . . Terminals 3 | . 3 . . . Fabricators . | . . . . . Repair Stations . | . . . . . Recycling Units . | . . . . . Scanalyzers . | . . . . . Garrison Access . | . . . . . Total Hacks 13 | . 13 . . . Successful 4 | . 4 . . . Failed 9 | . 9 . . . Catastrophic 1 | . 1 . . . Database Lockouts . | . . . . . Manual 14 | . 13 . 1 . Terminals 13 | . 13 . . . Fabricators . | . . . . . Repair Stations . | . . . . . Recycling Units . | . . . . . Scanalyzers . | . . . . . Garrison Access . | . . . . . Terminal Hacks 1 | . 1 . . . Robot Analysis 1 | . 1 . . . Fabricator Hacks . | . . . . . Repair Station Hacks . | . . . . . Recycling Unit Hacks . | . . . . . Scanalyzer . | . . . . . Garrison Access Hacks . | . . . . . Unauthorized Hacks 3 | . 3 . . . Terminals 3 | . 3 . . . Botnet 3 | . 3 . . . Fabricators . | . . . . . Repair Stations . | . . . . . Recycling Units . | . . . . . Scanalyzers . | . . . . . Garrison Access . | . . . . . Data Cores Recovered . | . . . . . Used . | . . . . . Hacking Detections 3 | . 3 . . . Full Trace Events 1 | . 1 . . . Feedback Events . | . . . . . Feedback Blocked . | . . . . . Robot Schematics Acquired . | . . . . . Robots Built . | . . . . . Authchips . | . . . . . Time . | . . . . . Total Robot Build Rating . | . . . . . Part Schematics Acquired . | . . . . . Parts Built . | . . . . . Authchips . | . . . . . Time . | . . . . . Total Part Build Rating . | . . . . . Parts Repaired . | . . . . . Time . | . . . . . Parts Recycled . | . . . . . Recycled Matter . | . . . . . Retrieved Matter . | . . . . . Retrieved Components . | . . . . . Parts Scanalyzed . | . . . . . Part Schematics Acquired . | . . . . . Parts Damaged . | . . . . . Bothacking | -11 -10 -10 -10 -9 ------------ Run | Yrd Mat Min Exi Min Used RIF Installer . | . . . . . Robots Hacked . | . . . . . Non-combat . | . . . . . Combat . | . . . . . Robot Hacks Applied . | . . . . . Relay Couplers Released . | . . . . . Fabnet Peak Effective % . | . . . . . Robots Rewired . | . . . . . Allies Hacked . | . . . . . Hacks Repelled . | . . . . . Allies | -11 -10 -10 -10 -9 -------- Run | Yrd Mat Min Exi Min Total Allies 1 | . . 1 . . Largest Group 1 | . . 1 1 . Highest-Rated Group 31 | . . 31 31 . Highest-Rated Ally 31 | . . 31 31 . Total Orders . | . . . . . Ally Attacks . | . . . . . Total Damage . | . . . . . Kills . | . . . . . Allies Corrupted . | . . . . . Allies Melted . | . . . . . Intel | -11 -10 -10 -10 -9 ------- Run | Yrd Mat Min Exi Min Robot Analysis Total 1 | . 1 . . . Derelict Logs Recovered . | . . . . . Drone Launches . | . . . . . Drone Recoveries . | . . . . . Exploration | -11 -10 -10 -10 -9 ------------- Run | Yrd Mat Min Exi Min Turns Passed 2695 | 68 1479 166 572 410 Spaces Moved 1068 | 37 580 68 233 150 Core 3 | 3 . . . . Treads 925 | 34 483 68 233 107 Legs . | . . . . . Wheels 140 | . 97 . . 43 Hover . | . . . . . Flight . | . . . . . Fastest Speed 50 | 50 140 240 240 125 Average Speed 226 | 151 223 240 240 230 Slowest Speed 320 | 160 320 240 240 320 Overloaded Moves . | . . . . . Propulsion Burnouts . | . . . . . Robots Hopped . | . . . . . Cave-ins Triggered . | . . . . . Exploration Rate (%) 39 | 3 84 17 60 35 Regions Visited 4 Branch Regions 3 Pre-discovered Areas . | . . . . . Known Exits Taken . | . . . . . Unknown Exits Taken 4 | 1 1 1 1 . Scrap Searched . | . . . . . Spaces Dug . | . . . . . Terrain Destroyed 9 | . . . . 9 Melee . | . . . . . Projectile . | . . . . . AOE 9 | . . . . 9 Terrain Rammed . | . . . . . Walls Destroyed . | . . . . . Machines Disabled . | . . . . . Actions | -11 -10 -10 -10 -9 --------- Run | Yrd Mat Min Exi Min Total 1255 | 46 703 72 249 185 Wait 62 | . 59 3 . . Move 1064 | 36 579 67 232 150 Hop . | . . . . . Pick Up 28 | 4 19 1 3 1 Fast Attach 17 | 6 6 . 4 1 Attach 9 | . 2 . 1 6 Detach 2 | . 1 . . 1 Swap 3 | . 2 . . 1 Drop 17 | . 4 1 9 3 Fire 50 | . 31 . . 19 Melee 3 | . . . . 3 Ram . | . . . . . Kick . | . . . . . Crush . | . . . . . Escape Stasis . | . . . . . Rewire . | . . . . . Trap . | . . . . . Miscellaneous . | . . . . . Route ------- -11/Scrapyard -10/Materials (discovered 3 exits: [*Mat x2] / [*Min]) -10/Mines -10/Exiles -9/Mines History --------- Turn | Location | Event 30 | -11/Scrapyard | Discovered new exit (range 15) 69 | -11/Scrapyard | Entered Materials 295 | -10/Materials | Discovered new exit (range 16) 317 | -10/Materials | Build established: Mutant 1272 | -10/Materials | Discovered new exit (range 4) 1455 | -10/Materials | Discovered new exit (range 13) 1548 | -10/Materials | Entered Mines 1551 | -10/Mines | Received a Mining Laser from a helpful Derelict 1663 | -10/Mines | Met a Derelict bent on vengeance 1704 | -10/Mines | Deemed a non-threat by the Exiles lab entrance 1704 | -10/Mines | Discovered new exit (range 5) 1714 | -10/Mines | Entered Exiles 1714 | -10/Exiles | Accompanied by 1 ally 1774 | -10/Exiles | Met 8R-AWN 1815 | -10/Exiles | Met EX-HEX 1892 | -10/Exiles | Met EX-BIN 1921 | -10/Exiles | Aligned with FarCom system 1923 | -10/Exiles | Given EX-Vault access code 1978 | -10/Exiles | Opened EX-Vault 1994 | -10/Exiles | Found Prototype Energy Gun 1994 | -10/Exiles | Identified AWS/Thermal 2004 | -10/Exiles | Found Prototype Slashing Weapon 2004 | -10/Exiles | Identified Longsword +1 2015 | -10/Exiles | Found Prototype Energy Cannon 2015 | -10/Exiles | Identified Firepult 2091 | -10/Exiles | Warned to stay clear of 0b10 Research branches 2161 | -10/Exiles | Met EX-DEC 2252 | -10/Exiles | Discovered new exit (range 14) 2286 | -10/Exiles | Stole three prototypes: AWS/Thermal, Firepult, Longsword +1 2286 | -10/Exiles | Entered Mines 2448 | -9/Mines | Assembled infested the area 2453 | -9/Mines | Assisted by a Guerilla fighting off Assembled 2476 | -9/Mines | Core integrity fell below 50% 2506 | -9/Mines | Core integrity fell below 20% 2545 | -9/Mines | Lost 4 parts (1p1n2w) 2696 | -9/Mines | Destroyed by as-37289 with Assembled Heavy Rifle Last Messages --------------- 02503_ as-52278 destroyed. 02503_ as-89785 destroyed. 02514_ Assault Rifle destroyed. 02520_ Destroyed Asb. Hover Unit. 02520_ as-57321 destroyed. 02522_ Acquired 19 matter. 02554_ Acquired Assault Rifle. 02557_ The unstable cave ceiling collapses. 02557_ Acquired 6 matter. 02562_ The unstable cave ceiling collapses. 02566_ as-07114 destroyed. 02568_ The unstable cave ceiling collapses. 02569_ Acquired 17 matter. 02570_ The unstable cave ceiling collapses. 02579_ Acquired 5 matter. 02602_ The unstable cave ceiling collapses. 02602_ Wheel crushed. 02612_ as-47440 destroyed. 02681_ Acquired 16 matter. 02693_ as-51320 destroyed. Map ----- +----------------------------------------------------+ | | | | | | | | | ???????????????????????????????????????????? | | ???????????????????????????????####????????? | | ?????????????????????????####### ##???????? | | ?????????????????????????# ######??? | | ?????????????????????????# #### ^ #??? | | ?????????????????????????# ##### #^## #??? | | ?????????????????????????# ## # ^#??? | | ??????????????#??????????# ## # # # #??? | | ????????????? ?????????# ## # ^# #??? | | ???????????#? ?????????# # ^ ^ #??? | | ???????????# """ ????????# # % #####??? | | ??????????%= """ ?##???### #??????? | | ???????????#%""" # #### ##??????? | | ????????????|!%* ## # ### # #???????? | | ?????????????#* ### [% #???????? | | ?????????????#! ### ## % ##???????? | | ?????????#####% *%!%%% % ####????????? | | ?????????# ## # # ##% ##???????????? | | ?????????# #### # ######????????????? | | ?????????# #?????# !![###?????????????????? | | #####???## #?????## ##%#####?????????####??? | | ##### ##?????##?#[aa@ #????????# ##?? | | ## #????????#!### ###?????# #?? | | #???????#=%#?# k #???## #?? | | " ###??????# *=?### ##### #?? | | " ###????????# ???# #??? | | " ######?????????? ???### ### #???? | | " ##?????????????? ?????# #?# "##???? | | #?????????????? """" ?????# ? #????? | | ##????????????? """" ?????##### #????? | | ##????????????? ?""" ????????## #????? | | ?????????????? ????? ?????????? #????? | | ????????????? ?????? ?????????? #????? | | ?????????????? ??????? ??????????####????? | | ??????????????????????? #??????????????????? | | ??????????????????????? ???????????????????? | | #######????????????????????????????????????? | | # #????????????????????????????????????? | | # #????????????????????????????????????? | | #????????????????????????????????????? | | # #????????????????????????????????????? | | # = #????????????????????????????????????? | | # [ * #????????????????????????????????????? | | #[ !%!#????????????????????????????????????? | | #######????????????????????????????????????? | | ???????????????????????????????????????????? | +----------------------------------------------------+ Best States ------------- Heat Dissipation 25 Energy Generation 10 Energy Capacity 250 Matter Stores 300 Matter Capacity 300 Sight Range 16 Terrain Scan Density 10 Evasion (%) 40 Targeting Accuracy 6 Recoil Reduction 2 Item Schematics ----------------- None Robot Schematics ------------------ None Fabricated ------------ Nothing Alien Tech Used ----------------- None Achievements -------------- None Challenges ------------ None Game ------ Seed ExperimentalFlakWand Manual? 0 Play Time 00:15:26 Cumulative 87.0 hours Start 2024.05.08 @ 22:06:49 End 2024.05.08 @ 22:21:45 Sessions 2 Manual Loads 0 Difficulty Rogue Special Mode None Game No. 129 Rogue 124 Adventurer 5 Explorer 0 Win Type - Total 2 Types 1/0/0/1/0/0/0/0/0 Lore% 45 Gallery% 63 Achievement% 49 Wizard Run 0 Options --------- Layout 0 ASCII 0 Keyboard 0 Movement Mouse Keybinds 0 Fullscreen 1 Font 24/Smallcaps Map View 38x25 Zoom Use 70% Tactical HUD 1 Map Filters NONE Filters NONE Steam 1 RUN: 0f0cebb3-309a-4346-991a-f7cec836df59